Departmental Area,Entity,Payment Date,Expense Type,Expense Area,Supplier Name,Payment Reference, Invoice Distribution Amount ,Description,Supplier Type,Expenditure Type
UK Statistics Authority,Office for National Statistics,01/07/2019,Exp - Purchase Of Goods/Services - Contractors,Business Indicators And B O P,Mango Solutions,142818," 53,796.00 ", Information Management Services ,SME,Programme Expenditure
UK Statistics Authority,Office for National Statistics,01/07/2019,Exp - Purchase Of Goods/Services - It Contractual Services,Tech Delivery Data As A Platform,Mango Solutions,142818," 45,630.00 ", Information Management Services ,SME,Programme Expenditure
UK Statistics Authority,Office for National Statistics,01/07/2019,"Ict Outsourcing, Maintenance And Support",Data Science Campus,Mango Solutions,142818," 8,190.00 ", Information Management Services ,SME,Programme Expenditure
UK Statistics Authority,Office for National Statistics,01/07/2019,Exp - Purchase Of Goods/Services - It Contractual Services,Strategy And Architecture,Medley Business Solutions Ltd,142825," 29,811.56 ", Information Management Services ,Large,Programme Expenditure
UK Statistics Authority,Office for National Statistics,01/07/2019,Exp - Purchase Of Goods/Services - Contractors,Business Architecture,Certes Computing Ltd,142826," 18,408.02 ", Information Management Services ,SME,Programme Expenditure
UK Statistics Authority,Office for National Statistics,01/07/2019,Exp - Purchase Of Goods/Services - Contractors,Commercial Services,Certes Computing Ltd,142826," 14,730.95 ", Information Management Services ,SME,Programme Expenditure
UK Statistics Authority,Office for National Statistics,01/07/2019,Exp - Purchase Of Goods/Services - Contractors,Digital Delivery,Certes Computing Ltd,142826," 19,150.26 ", Information Management Services ,SME,Programme Expenditure
UK Statistics Authority,Office for National Statistics,01/07/2019,Exp - Purchase Of Goods/Services - Contractors,Digital Delivery,Certes Computing Ltd,142826," 13,604.33 ", Information Management Services ,SME,Programme Expenditure
UK Statistics Authority,Office for National Statistics,01/07/2019,Exp - Purchase Of Goods/Services - Contractors,Testing,La International,142827," 2,819.38 ", Information Management Services ,SME,Programme Expenditure
UK Statistics Authority,Office for National Statistics,01/07/2019,Exp - Purchase Of Goods/Services - Contractors,Security Advisory,La International,142827," 3,524.22 ", Information Management Services ,SME,Programme Expenditure
UK Statistics Authority,Office for National Statistics,01/07/2019,Exp - Purchase Of Goods/Services - Contractors,Data Architecture,La International,142827," 3,748.50 ", Information Management Services ,SME,Programme Expenditure
UK Statistics Authority,Office for National Statistics,01/07/2019,Exp - Purchase Of Goods/Services - Contractors,Tech Delivery Srs,La International,142827," 6,458.94 ", Information Management Services ,SME,Programme Expenditure
UK Statistics Authority,Office for National Statistics,01/07/2019,Exp - Purchase Of Goods/Services - Contractors,Tech Delivery Data As A Platform,La International,142827," 3,588.30 ", Information Management Services ,SME,Programme Expenditure
UK Statistics Authority,Office for National Statistics,01/07/2019,Exp - Purchase Of Goods/Services - Contractors,It Applications,La International,142827," 5,190.26 ", Information Management Services ,SME,Programme Expenditure
UK Statistics Authority,Office for National Statistics,01/07/2019,Exp - Purchase Of Goods/Services - Contractors,Digital Delivery,La International,142827," 26,130.64 ", Information Management Services ,SME,Programme Expenditure
UK Statistics Authority,Office for National Statistics,01/07/2019,Exp - Purchase Of Goods/Services - Contractors,Digital Delivery,La International,142827," 2,870.64 ", Information Management Services ,SME,Programme Expenditure
UK Statistics Authority,Office for National Statistics,01/07/2019,Exp - Short-Term Contract & Agency Staff - Full Cost,Data Capability,Parity Resources Limited,142830, 110.42 , Information Management Services ,Large,Programme Expenditure
UK Statistics Authority,Office for National Statistics,01/07/2019,Exp - Purchase Of Goods/Services - Contractors,Business Architecture,Parity Resources Limited,142830," 8,522.64 ", Information Management Services ,Large,Programme Expenditure
UK Statistics Authority,Office for National Statistics,01/07/2019,Exp - Purchase Of Goods/Services - Contractors,Testing,Parity Resources Limited,142830," 15,154.92 ", Information Management Services ,Large,Programme Expenditure
UK Statistics Authority,Office for National Statistics,01/07/2019,Exp - Purchase Of Goods/Services - Contractors,Data Integration And Dissemination,Parity Resources Limited,142830," 14,810.04 ", Information Management Services ,Large,Programme Expenditure
UK Statistics Authority,Office for National Statistics,01/07/2019,Exp - Purchase Of Goods/Services - Contractors,Programme Other,Parity Resources Limited,142830," 27,137.88 ", Information Management Services ,Large,Programme Expenditure
UK Statistics Authority,Office for National Statistics,01/07/2019,Exp - Purchase Of Goods/Services - Contractors,Programme Delivery,Parity Resources Limited,142830," 6,343.92 ", Information Management Services ,Large,Programme Expenditure
UK Statistics Authority,Office for National Statistics,01/07/2019,Exp - Purchase Of Goods/Services - Contractors,Programme Delivery,Parity Resources Limited,142830," 9,868.32 ", Information Management Services ,Large,Programme Expenditure
UK Statistics Authority,Office for National Statistics,01/07/2019,Exp - Purchase Of Goods And Services Consultants,Programme Delivery,Parity Resources Limited,142830," 3,204.00 ", Information Management Services ,Large,Programme Expenditure
UK Statistics Authority,Office for National Statistics,01/07/2019,Exp - Purchase Of Goods/Services - Contractors,Digital Publishing,Parity Resources Limited,142830," 16,507.01 ", Information Management Services ,Large,Programme Expenditure
UK Statistics Authority,Office for National Statistics,01/07/2019,Exp - Purchase Of Goods/Services - Contractors,Digital Publishing,Parity Resources Limited,142830," 11,278.08 ", Information Management Services ,Large,Programme Expenditure
UK Statistics Authority,Office for National Statistics,01/07/2019,Exp - Purchase Of Goods/Services - Contractors,Productivity Innovation Engagement And Research,Parity Resources Limited,142830," 3,676.20 ", Information Management Services ,Large,Programme Expenditure
UK Statistics Authority,Office for National Statistics,01/07/2019,Exp - Purchase Of Goods And Services Consultants,Productivity Innovation Engagement And Research,Parity Resources Limited,142830," 2,444.04 ", Information Management Services ,Large,Programme Expenditure
UK Statistics Authority,Office for National Statistics,01/07/2019,Exp - Short-Term Contract & Agency Staff - Full Cost,Strategy And Engagement,Parity Resources Limited,142830, 786.77 , Information Management Services ,Large,Programme Expenditure
UK Statistics Authority,Office for National Statistics,01/07/2019,Exp - Purchase Of Goods/Services - Contractors,Security Advisory,Parity Resources Limited,142830," 13,072.32 ", Information Management Services ,Large,Programme Expenditure
UK Statistics Authority,Office for National Statistics,01/07/2019,Exp - Short-Term Contract & Agency Staff - Full Cost,Health Analysis And Life Events,Parity Resources Limited,142830," 5,585.93 ", Information Management Services ,Large,Programme Expenditure
UK Statistics Authority,Office for National Statistics,01/07/2019,Exp - Purchase Of Goods/Services - It Contractual Services,Strategy And Architecture,Parity Resources Limited,142830," 12,240.00 ", Information Management Services ,Large,Programme Expenditure
UK Statistics Authority,Office for National Statistics,01/07/2019,Exp - Purchase Of Goods/Services - Contractors,Tech Delivery Legacy Sp,Parity Resources Limited,142830," 12,623.76 ", Information Management Services ,Large,Programme Expenditure
UK Statistics Authority,Office for National Statistics,01/07/2019,Exp - Purchase Of Goods/Services - Contractors,It Applications,Parity Resources Limited,142830," 4,870.08 ", Information Management Services ,Large,Programme Expenditure
UK Statistics Authority,Office for National Statistics,01/07/2019,Exp - Purchase Of Goods/Services - Contractors,It Applications,Parity Resources Limited,142830," 25,439.76 ", Information Management Services ,Large,Programme Expenditure
UK Statistics Authority,Office for National Statistics,01/07/2019,Exp - Purchase Of Goods/Services - Contractors,It Operations,Parity Resources Limited,142830," 1,025.28 ", Information Management Services ,Large,Programme Expenditure
UK Statistics Authority,Office for National Statistics,01/07/2019,Exp - Short-Term Contract & Agency Staff - Full Cost,Office Of Chief Data And Information,Parity Resources Limited,142830, 292.15 , Information Management Services ,Large,Programme Expenditure
UK Statistics Authority,Office for National Statistics,01/07/2019,Exp - Purchase Of Goods/Services - Contractors,Digital Delivery,Parity Resources Limited,142830," 44,202.38 ", Information Management Services ,Large,Programme Expenditure
UK Statistics Authority,Office for National Statistics,01/07/2019,Exp - Purchase Of Goods/Services - Contractors,Digital Delivery,Parity Resources Limited,142830," 1,435.39 ", Information Management Services ,Large,Programme Expenditure
UK Statistics Authority,Office for National Statistics,01/07/2019,Exp - Purchase Of Goods/Services - Contractors,Digital Delivery,Parity Resources Limited,142830," 16,507.01 ", Information Management Services ,Large,Programme Expenditure
UK Statistics Authority,Office for National Statistics,01/07/2019,Exp - Purchase Of Goods/Services - Contractors,Digital Delivery,Parity Resources Limited,142830," 31,987.00 ", Information Management Services ,Large,Programme Expenditure
UK Statistics Authority,Office for National Statistics,01/07/2019,Exp - Purchase Of Goods/Services - Contractors,Digital Delivery,Parity Resources Limited,142830," 5,446.80 ", Information Management Services ,Large,Programme Expenditure
UK Statistics Authority,Office for National Statistics,01/07/2019,Exp - Purchase Of Goods/Services - It Contractual Services,Digital Delivery,Parity Resources Limited,142830," 10,518.05 ", Information Management Services ,Large,Programme Expenditure
UK Statistics Authority,Office for National Statistics,01/07/2019,Exp - Purchase Of Goods/Services - Contractor Travel,Digital Delivery,Parity Resources Limited,142830, 44.64 , Information Management Services ,Large,Programme Expenditure
UK Statistics Authority,Office for National Statistics,01/07/2019,Exp - Purchase Of Goods/Services - Contractors,Interviewer Support,Parity Resources Limited,142830," 2,883.60 ", Information Management Services ,Large,Programme Expenditure
UK Statistics Authority,Office for National Statistics,01/07/2019,Exp - Purchase Of Goods/Services - Contractors,Business Outputs And Developments,Parity Resources Limited,142830, 897.12 , Information Management Services ,Large,Programme Expenditure
UK Statistics Authority,Office for National Statistics,01/07/2019,Training & Development,Business Outputs And Developments,Parity Resources Limited,142830," 7,625.52 ", Information Management Services ,Large,Programme Expenditure
UK Statistics Authority,Office for National Statistics,01/07/2019,Other Goods And Services,Stakeholder Engagement And Comms,Four Communications Group Limited,142834," 215,950.56 ", Census Rehearsal Publicity,SME,Programme Expenditure
UK Statistics Authority,Office for National Statistics,01/07/2019,Hosting,It Operations,Amazon Web Services Inc,142835," 65,987.48 ", Web Hosting Services,Large,Programme Expenditure
UK Statistics Authority,Office for National Statistics,01/07/2019,Special Payments,Data Collection Service,Leidos Innovations UK Limited,142836," 4,053,499.54 ", Census Information Management Services and Enterprise License ,Large,Programme Expenditure
UK Statistics Authority,Office for National Statistics,01/07/2019,"Ict Outsourcing, Maintenance And Support",It Applications,Cysure Limited,142837," 127,542.96 ", Software Support,SME,Programme Expenditure
UK Statistics Authority,Office for National Statistics,01/07/2019,Surveys,Social Survey Transformation Newport,Ipsos MORI,142840," 204,960.00 ", Statisical Services,Large,Programme Expenditure
UK Statistics Authority,Office for National Statistics,01/07/2019,"Ict Outsourcing, Maintenance And Support",Senior Management Team Design,Totalmobile Ltd,142844," 143,186.40 ", Census Information Management Services and Enterprise License ,SME,Programme Expenditure
UK Statistics Authority,Office for National Statistics,01/07/2019,"Ict Outsourcing, Maintenance And Support",It Operations,CTS (Cloud Technology Solutions Ltd),142845," 26,140.91 ", Google Cloud Services,Large,Programme Expenditure
UK Statistics Authority,Office for National Statistics,01/07/2019,Training & Development,Digital Delivery,CTS (Cloud Technology Solutions Ltd),142845," 25,560.00 ", Google Cloud Services,Large,Programme Expenditure
UK Statistics Authority,Office for National Statistics,01/07/2019,Special Payments,Data Collection Service,HH Associates Ltd,142846," 36,000.00 ", Census Print and Post Out Contract,SME,Programme Expenditure
UK Statistics Authority,Office for National Statistics,01/07/2019,Exp - Purchase Of Goods/Services - Contractors,Ppp Operations,Certeco Ltd,142848," 28,080.00 ", Information Management Services,Large,Programme Expenditure
UK Statistics Authority,Office for National Statistics,01/07/2019,Exp - Purchase Of Goods And Services Consultants,Tech Delivery Srs,"Nomensa Ltd,",142849," 49,320.00 ", Information Management Services,Large,Programme Expenditure
UK Statistics Authority,Office for National Statistics,02/07/2019,Exp - Purchase Of Goods/Services - It Contractual Services,Digital Publishing,Methods Business & Digital Technology Ltd,143423," 40,050.00 ", Information Management Services ,Large,Programme Expenditure
UK Statistics Authority,Office for National Statistics,02/07/2019,Exp - Purchase Of Goods/Services - It Contractual Services,Dst Reapportioning,Methods Business & Digital Technology Ltd,143423," 335,445.00 ", Information Management Services ,Large,Programme Expenditure
UK Statistics Authority,Office for National Statistics,02/07/2019,Exp - Purchase Of Goods/Services - Contractors,Testing,La International,143425," 6,087.30 ", Information Management Services ,SME,Programme Expenditure
UK Statistics Authority,Office for National Statistics,02/07/2019,Exp - Purchase Of Goods/Services - Contractors,Programme Delivery,La International,143425," 3,203.88 ", Information Management Services ,SME,Programme Expenditure
UK Statistics Authority,Office for National Statistics,02/07/2019,Exp - Purchase Of Goods/Services - Contractors,Data Architecture,La International,143425," 3,748.50 ", Information Management Services ,SME,Programme Expenditure
UK Statistics Authority,Office for National Statistics,02/07/2019,Exp - Purchase Of Goods/Services - Contractors,Tech Delivery Srs,La International,143425," 3,588.30 ", Information Management Services ,SME,Programme Expenditure
UK Statistics Authority,Office for National Statistics,02/07/2019,Exp - Purchase Of Goods/Services - Contractors,It Applications,La International,143425," 12,071.88 ", Information Management Services ,SME,Programme Expenditure
UK Statistics Authority,Office for National Statistics,02/07/2019,Exp - Purchase Of Goods/Services - Contractors,Digital Delivery,La International,143425,"-6,458.94 ", Information Management Services ,SME,Programme Expenditure
UK Statistics Authority,Office for National Statistics,02/07/2019,Exp - Purchase Of Goods/Services - Contractors,Digital Delivery,La International,143425," 14,769.74 ", Information Management Services ,SME,Programme Expenditure
UK Statistics Authority,Office for National Statistics,02/07/2019,Capital Major Works >25K,Property Newport,Paramount Office Interiors Ltd,143430," 1,896.50 ", Major Works Newport,SME,Capital Expenditure
UK Statistics Authority,Office for National Statistics,02/07/2019,Major Works Over 25K,Property Newport,Paramount Office Interiors Ltd,143430," 2,219.88 ", Major Works Newport,SME,Programme Expenditure
UK Statistics Authority,Office for National Statistics,02/07/2019,Major Works Over 25K,Property Newport,Paramount Office Interiors Ltd,143430, 812.78 , Major Works Newport,SME,Programme Expenditure
UK Statistics Authority,Office for National Statistics,02/07/2019,Major Works Over 25K,Property Christchurch,Paramount Office Interiors Ltd,143430," 26,076.00 ", Major Works Christchurch,SME,Programme Expenditure
UK Statistics Authority,Office for National Statistics,02/07/2019,Other Goods And Services,Operations,Servicenow,143433," 40,031.04 ", Software Support,Large,Programme Expenditure
UK Statistics Authority,Office for National Statistics,02/07/2019,Exp - Purchase Of Goods And Services Consultants,Consultancy Management,Bloom Procurement Services Ltd,143435," 941,116.80 ", Census Information Magement Service,Large,Programme Expenditure
UK Statistics Authority,Office for National Statistics,02/07/2019,Surveys,Business Outputs And Developments,Iff Research,143439," 59,373.60 ", Statisical Services,Large,Programme Expenditure
UK Statistics Authority,Office for National Statistics,02/07/2019,Surveys,Business Outputs And Developments,Iff Research,143439," 118,747.20 ", Statisical Services,Large,Programme Expenditure
UK Statistics Authority,Office for National Statistics,02/07/2019,Other Goods And Services,Data Collection Service,Serco Ltd,143440," 101,679.60 ", Information Management Services,Large,Programme Expenditure
UK Statistics Authority,Office for National Statistics,02/07/2019,"Ict Outsourcing, Maintenance And Support",Researcher Support And Data Access ,University of West England,143441," 29,873.81 ", Safe Researcher Training,Large,Programme Expenditure
UK Statistics Authority,Office for National Statistics,02/07/2019,"Ict Outsourcing, Maintenance And Support",Finance,Accenture (UK) Limited,143442," 85,200.00 ", Oracle Fusion Support ,SME,Programme Expenditure
UK Statistics Authority,Office for National Statistics,02/07/2019,Special Payments,Data Collection Service,Leidos Innovations UK Limited,143443," 1,287,641.26 ", Census Information Management Services,Large,Programme Expenditure
UK Statistics Authority,Office for National Statistics,02/07/2019,"Ict Outsourcing, Maintenance And Support",It Operations,Sas Software Ltd,143446," 636,000.00 ", Maintenance and Support,Large,Programme Expenditure
UK Statistics Authority,Office for National Statistics,02/07/2019,Other Goods And Services,Digital Delivery,Redrock Consulting,143447," 27,941.58 ", Information Management Services,Large,Programme Expenditure
UK Statistics Authority,Office for National Statistics,02/07/2019,Exp - Purchase Of Goods/Services - It Contractual Services,Digital Publishing,E Synergy Solutions,143448," 12,600.00 ", Information Management Services ,SME,Programme Expenditure
UK Statistics Authority,Office for National Statistics,02/07/2019,Exp - Purchase Of Goods/Services - It Contractual Services,Dst Reapportioning,E Synergy Solutions,143448," 482,301.00 ", Information Management Services ,SME,Programme Expenditure
UK Statistics Authority,Office for National Statistics,02/07/2019,Exp - Purchase Of Goods/Services - It Contractual Services,Cdio Ungp,E Synergy Solutions,143448," 34,290.00 ", Information Management Services ,SME,Programme Expenditure
UK Statistics Authority,Office for National Statistics,02/07/2019,Exp - Purchase Of Goods/Services - Contractor Travel,Cdio Ungp,E Synergy Solutions,143448," 2,317.85 ", Information Management Services ,SME,Programme Expenditure
UK Statistics Authority,Office for National Statistics,02/07/2019,Exp - Purchase Of Goods/Services - It Contractual Services,It Operations,E Synergy Solutions,143448, 846.00 , Information Management Services ,SME,Programme Expenditure
UK Statistics Authority,Office for National Statistics,02/07/2019,Telecoms,It Operations,Bt Global Services,143452," 53,635.00 ", BT Cloud Services,Large,Programme Expenditure
UK Statistics Authority,Office for National Statistics,02/07/2019,Software Licences At Cost - Additions,Digital Delivery,Xma Limited,143455," 31,386.37 ", Licences ,Large,Capital Expenditure
UK Statistics Authority,Office for National Statistics,03/07/2019,Telecoms,It Operations,Crown Hosting Data Centres Limited,143465," 2,580.01 ", Crown Hosted Data Centre,SME,Programme Expenditure
UK Statistics Authority,Office for National Statistics,03/07/2019,It Management And Change,It Operations,Crown Hosting Data Centres Limited,143465," 72,274.81 ", Crown Hosted Data Centre,SME,Programme Expenditure
UK Statistics Authority,Office for National Statistics,03/07/2019,Postage,Survey Processing Centre,DHL Parcel Ltd,143469," 29,512.94 ", Outgoing Postage,Large,Programme Expenditure
UK Statistics Authority,Office for National Statistics,03/07/2019,Exp - Purchase Of Goods/Services - It Contractual Services,Dst Reapportioning,Qa Ltd,143471," 173,514.00 ", Information Management Services,Large,Programme Expenditure
UK Statistics Authority,Office for National Statistics,03/07/2019,Exp - Purchase Of Goods/Services - It Contractual Services,Dst Reapportioning,Qa Ltd,143472," 174,606.00 ", Information Management Services,Large,Programme Expenditure
UK Statistics Authority,Office for National Statistics,03/07/2019,Capital Major Works >25K,Property Titchfield,Paramount Office Interiors Ltd,143473," 67,335.10 ", Major Works Titchfield,SME,Capital Expenditure
UK Statistics Authority,Office for National Statistics,03/07/2019,Major Works Over 25K,Property Titchfield,Paramount Office Interiors Ltd,143473," 119,706.85 ", Major Works Titchfield,SME,Programme Expenditure
UK Statistics Authority,Office for National Statistics,03/07/2019,Travel And Subsistence,Cwt Trainline,Corporate Travel Management ,143483," 63,713.29 ", Travel and Accommodation Booking Service ,SME,Programme Expenditure
UK Statistics Authority,Office for National Statistics,03/07/2019,Exp - Purchase Of Goods/Services - Contractors,Testing,La International,143484," 7,496.99 ", Information Management Services ,SME,Programme Expenditure
UK Statistics Authority,Office for National Statistics,03/07/2019,Exp - Purchase Of Goods/Services - Contractors,Programme Delivery,La International,143484," 2,883.49 ", Information Management Services ,SME,Programme Expenditure
UK Statistics Authority,Office for National Statistics,03/07/2019,Exp - Purchase Of Goods/Services - Contractors,Data Architecture,La International,143484," 3,748.50 ", Information Management Services ,SME,Programme Expenditure
UK Statistics Authority,Office for National Statistics,03/07/2019,Exp - Purchase Of Goods/Services - Contractors,Tech Delivery Data As A Platform,La International,143484," 6,458.94 ", Information Management Services ,SME,Programme Expenditure
UK Statistics Authority,Office for National Statistics,03/07/2019,Exp - Purchase Of Goods/Services - Contractors,It Applications,La International,143484," 4,622.78 ", Information Management Services ,SME,Programme Expenditure
UK Statistics Authority,Office for National Statistics,03/07/2019,Exp - Purchase Of Goods/Services - Contractors,Digital Delivery,La International,143484," 10,764.90 ", Information Management Services ,SME,Programme Expenditure
UK Statistics Authority,Office for National Statistics,03/07/2019,Exp - Purchase Of Goods And Services Consultants,Tech Delivery Srs,Equiniti-TopLevel,143487," 88,473.60 ", Information Management Services,SME,Programme Expenditure
UK Statistics Authority,Office for National Statistics,03/07/2019,Hosting,It Operations,Equiniti-TopLevel,143487," 4,734.00 ", Information Management Services,SME,Programme Expenditure
UK Statistics Authority,Office for National Statistics,03/07/2019,Rent Payable,Property London,James Andrew RSW Ltd,143488," 57,692.40 ", Drummond Gate Rent,SME,Programme Expenditure
UK Statistics Authority,Office for National Statistics,04/07/2019,Surveys,Crime Statistics,Kantar UK Ltd,143798," 474,294.21 ", Statistical Services,Large,Programme Expenditure
UK Statistics Authority,Office for National Statistics,04/07/2019,Surveys,Prices Division,Kantar UK Ltd,143798," 162,074.33 ", Statistical Services,Large,Programme Expenditure
UK Statistics Authority,Office for National Statistics,05/07/2019,Exp - Purchase Of Goods/Services - Contractors,Programme Other,Parity Resources Limited,143808, 14.33 , Information Management Services,Large,Programme Expenditure
UK Statistics Authority,Office for National Statistics,05/07/2019,Exp - Purchase Of Goods/Services - Contractors,Security Advisory,Parity Resources Limited,143808," 30,399.55 ", Information Management Services,Large,Programme Expenditure
UK Statistics Authority,Office for National Statistics,05/07/2019,End User Software And Hardware,It Operations,Computacenter (Uk) Limited,143823," 64,121.72 ", Cloud Services,Large,Programme Expenditure
UK Statistics Authority,Office for National Statistics,08/07/2019,Exp - Purchase Of Goods/Services - Contractors,Security Advisory,La International,144139," 20,760.95 ", Information Management Services ,SME,Programme Expenditure
UK Statistics Authority,Office for National Statistics,08/07/2019,Exp - Purchase Of Goods/Services - Contractors,Tech Delivery Srs,La International,144139," 7,176.60 ", Information Management Services ,SME,Programme Expenditure
UK Statistics Authority,Office for National Statistics,09/07/2019,Travel And Subsistence,Cwt Trainline,Corporate Travel Management ,144462," 50,367.00 ", Travel and Accommodation Booking Service ,SME,Programme Expenditure
UK Statistics Authority,Office for National Statistics,10/07/2019,Exp - Purchase Of Goods/Services - Incentive Payments,Interviewer Support,Park Retail Ltd,144478," 3,804.18 ", Survey Incentive Vouchers,Large,Programme Expenditure
UK Statistics Authority,Office for National Statistics,10/07/2019,Exp - Purchase Of Goods/Services - Incentive Payments,Interviewer Support,Park Retail Ltd,144478, 134.21 , Survey Incentive Vouchers,Large,Programme Expenditure
UK Statistics Authority,Office for National Statistics,10/07/2019,Exp - Purchase Of Goods/Services - Incentive Payments,Interviewer Support,Park Retail Ltd,144478," 1,407.10 ", Survey Incentive Vouchers,Large,Programme Expenditure
UK Statistics Authority,Office for National Statistics,10/07/2019,Exp - Purchase Of Goods/Services - Incentive Payments,Survey Management,Park Retail Ltd,144478," 37,620.28 ", Survey Incentive Vouchers,Large,Programme Expenditure
UK Statistics Authority,Office for National Statistics,10/07/2019,Exp - Purchase Of Goods/Services - Incentive Payments,Survey Management,Park Retail Ltd,144478," 22,959.82 ", Survey Incentive Vouchers,Large,Programme Expenditure
UK Statistics Authority,Office for National Statistics,10/07/2019,Exp - Purchase Of Goods/Services - Incentive Payments,Survey Management,Park Retail Ltd,144478," 4,093.81 ", Survey Incentive Vouchers,Large,Programme Expenditure
UK Statistics Authority,Office for National Statistics,11/07/2019,Special Payments,Census Ccs Data Collection,Granby Marketing Services Ltd,144843," 29,202.19 ", Census Information Management Services,Large,Programme Expenditure
UK Statistics Authority,Office for National Statistics,11/07/2019,Exp - Purchase Of Goods And Services Consultants,Digital Delivery,Xma Limited,144847," 32,077.20 ", Licences ,Large,Programme Expenditure
UK Statistics Authority,Office for National Statistics,12/07/2019,Telecoms,Interviewer Management Fif,EE Limited,144860," 32,865.73 ", Telecom Services,Large,Programme Expenditure
UK Statistics Authority,Office for National Statistics,12/07/2019,Telecoms,Interview Management Ips,EE Limited,144860," 8,100.06 ", Telecom Services,Large,Programme Expenditure
UK Statistics Authority,Office for National Statistics,12/07/2019,Stationery,Lodgecard,Royal Bank of Scotland,144867," 10,707.74 ", Multiple Procurement Card Stationery Purchases  ,Large,Programme Expenditure
UK Statistics Authority,Office for National Statistics,12/07/2019,Other Goods And Services,Gpc,Royal Bank of Scotland,144867," 70,089.07 ", Multiple Procurement Card Purchases  ,Large,Programme Expenditure
UK Statistics Authority,Office for National Statistics,12/07/2019,Travel And Subsistence,Car Hire,Royal Bank of Scotland,144867," 33,020.07 ", Multiple Procurement Card Car Hire Purchases  ,Large,Programme Expenditure
UK Statistics Authority,Office for National Statistics,12/07/2019,Software Licences At Cost - Additions,Digital Delivery,Xma Limited,144873," 143,251.20 ", Licences ,Large,Capital Expenditure
UK Statistics Authority,Office for National Statistics,16/07/2019,Training & Development,Office Of Chief Data And Information,Armakuni Ltd,145355," 81,360.00 ", Training ,SME,Programme Expenditure
UK Statistics Authority,Office for National Statistics,17/07/2019,Fm Contract Payments,Mitie Payments,Vinci Construction UK Limited,145364," 107,599.68 ", Facility Management Services,Large,Programme Expenditure
UK Statistics Authority,Office for National Statistics,18/07/2019,Exp - Purchase Of Goods And Services Consultants,Strategy And Architecture,Ibm United Kingdom Ltd,145840," 53,190.29 ", Licenses,Large,Programme Expenditure
UK Statistics Authority,Office for National Statistics,18/07/2019,Travel And Subsistence,Cwt Trainline,Corporate Travel Management ,145841," 59,476.57 ", Travel and Accommodation Booking Service ,SME,Programme Expenditure
UK Statistics Authority,Office for National Statistics,19/07/2019,Exp - Short-Term Contract & Agency Staff - Full Cost,Beyond 2021 Research And Design,Concept Information Technology Ltd T/A Concept Resourcing,145859," 2,946.56 ", Information Management Services,Large,Programme Expenditure
UK Statistics Authority,Office for National Statistics,19/07/2019,Exp - Short-Term Contract & Agency Staff - Full Cost,Business Change Support,Concept Information Technology Ltd T/A Concept Resourcing,145859," 3,101.23 ", Information Management Services,Large,Programme Expenditure
UK Statistics Authority,Office for National Statistics,19/07/2019,Exp - Short-Term Contract & Agency Staff - Full Cost,Business Change Support,Concept Information Technology Ltd T/A Concept Resourcing,145859," 4,749.91 ", Information Management Services,Large,Programme Expenditure
UK Statistics Authority,Office for National Statistics,19/07/2019,Exp - Short-Term Contract & Agency Staff - Full Cost,Business Change Support,Concept Information Technology Ltd T/A Concept Resourcing,145859," 4,347.36 ", Information Management Services,Large,Programme Expenditure
UK Statistics Authority,Office for National Statistics,19/07/2019,Exp - Short-Term Contract & Agency Staff - Full Cost,Business Change Support,Concept Information Technology Ltd T/A Concept Resourcing,145859," 9,297.61 ", Information Management Services,Large,Programme Expenditure
UK Statistics Authority,Office for National Statistics,19/07/2019,Exp - Short-Term Contract & Agency Staff - Full Cost,Business Change Support,Concept Information Technology Ltd T/A Concept Resourcing,145859," 12,593.22 ", Information Management Services,Large,Programme Expenditure
UK Statistics Authority,Office for National Statistics,19/07/2019,Exp - Purchase Of Goods/Services - Contractors,Business Change Support,Concept Information Technology Ltd T/A Concept Resourcing,145859, 989.68 , Information Management Services,Large,Programme Expenditure
UK Statistics Authority,Office for National Statistics,19/07/2019,Exp - Purchase Of Goods/Services - Contractors,Business Change Support,Concept Information Technology Ltd T/A Concept Resourcing,145859," 4,658.70 ", Information Management Services,Large,Programme Expenditure
UK Statistics Authority,Office for National Statistics,19/07/2019,Exp - Purchase Of Goods/Services - Contractors,Business Change Support,Concept Information Technology Ltd T/A Concept Resourcing,145859, 791.21 , Information Management Services,Large,Programme Expenditure
UK Statistics Authority,Office for National Statistics,19/07/2019,Exp - Purchase Of Goods/Services - Contractors,Business Change Support,Concept Information Technology Ltd T/A Concept Resourcing,145859," 7,713.89 ", Information Management Services,Large,Programme Expenditure
UK Statistics Authority,Office for National Statistics,19/07/2019,Exp - Purchase Of Goods/Services - Contractors,Business Change Support,Concept Information Technology Ltd T/A Concept Resourcing,145859," 12,615.44 ", Information Management Services,Large,Programme Expenditure
UK Statistics Authority,Office for National Statistics,19/07/2019,Exp - Short-Term Contract & Agency Staff - Full Cost,N A Coordination,Concept Information Technology Ltd T/A Concept Resourcing,145859," 8,091.54 ", Information Management Services,Large,Programme Expenditure
UK Statistics Authority,Office for National Statistics,19/07/2019,Exp - Purchase Of Goods/Services - Contractors,N A Coordination,Concept Information Technology Ltd T/A Concept Resourcing,145859, 791.22 , Information Management Services,Large,Programme Expenditure
UK Statistics Authority,Office for National Statistics,19/07/2019,Exp - Short-Term Contract & Agency Staff - Full Cost,Business Indicators And B O P,Concept Information Technology Ltd T/A Concept Resourcing,145859," 4,749.12 ", Information Management Services,Large,Programme Expenditure
UK Statistics Authority,Office for National Statistics,19/07/2019,Exp - Purchase Of Goods/Services - Contractors,Business Indicators And B O P,Concept Information Technology Ltd T/A Concept Resourcing,145859," 8,376.67 ", Information Management Services,Large,Programme Expenditure
UK Statistics Authority,Office for National Statistics,19/07/2019,Exp - Short-Term Contract & Agency Staff - Full Cost,Productivity Innovation Engagement And Research,Concept Information Technology Ltd T/A Concept Resourcing,145859, 0.01 , Information Management Services,Large,Programme Expenditure
UK Statistics Authority,Office for National Statistics,19/07/2019,Exp - Purchase Of Goods/Services - Contractors,Census & Soc Methodology Dd,Concept Information Technology Ltd T/A Concept Resourcing,145859," 3,582.31 ", Information Management Services,Large,Programme Expenditure
UK Statistics Authority,Office for National Statistics,19/07/2019,Exp - Short-Term Contract & Agency Staff - Full Cost,Survey Processing Centre,Concept Information Technology Ltd T/A Concept Resourcing,145859," 2,702.59 ", Information Management Services,Large,Programme Expenditure
UK Statistics Authority,Office for National Statistics,19/07/2019,Exp - Purchase Of Goods/Services - Contractors,Business Statistics Transformation,Concept Information Technology Ltd T/A Concept Resourcing,145859," 4,745.63 ", Information Management Services,Large,Programme Expenditure
UK Statistics Authority,Office for National Statistics,19/07/2019,Exp - Short-Term Contract & Agency Staff - Full Cost,Prices Division,Concept Information Technology Ltd T/A Concept Resourcing,145859," 4,749.91 ", Information Management Services,Large,Programme Expenditure
UK Statistics Authority,Office for National Statistics,19/07/2019,Exp - Purchase Of Goods And Services Consultants,Productivity Innovation Engagement And Research,Niesr,145865," 471,636.00 ", Statistical Services,SME,Programme Expenditure
UK Statistics Authority,Office for National Statistics,19/07/2019,"Ict Outsourcing, Maintenance And Support",Tech Delivery Next Gen It And Infrastructure,Paramount Office Interiors Ltd,145867," 66,951.36 ", Major Works Newport,SME,Programme Expenditure
UK Statistics Authority,Office for National Statistics,19/07/2019,Special Payments,Census Ccs Data Collection,Adecco UK Limited,145869," 141,170.40 ", Census Recruitment and Payroll Services,SME,Programme Expenditure
UK Statistics Authority,Office for National Statistics,22/07/2019,Fm Contract Payments,Mitie Payments,Vinci Construction UK Limited,146103," 631,281.04 ", Facility Management Services,Large,Programme Expenditure
UK Statistics Authority,Office for National Statistics,22/07/2019,Travel And Subsistence,Cwt Trainline,Calder World of Travel,146112," 30,890.69 ", Travel and Accommodation Booking Service ,SME,Programme Expenditure
UK Statistics Authority,Office for National Statistics,23/07/2019,Exp - Purchase Of Goods/Services - It Contractual Services,It Applications,Cysure Limited,146428," 101,534.35 ", Information Management Services,SME,Programme Expenditure
UK Statistics Authority,Office for National Statistics,23/07/2019,Special Payments,Census Ccs Data Collection,Adecco UK Limited,146429," 49,464.00 ", Census Recruitment and Payroll Services,SME,Programme Expenditure
UK Statistics Authority,Office for National Statistics,24/07/2019,"Ict Outsourcing, Maintenance And Support",Digital Delivery,Worth Internet Systems,146447," 89,715.46 ", Census Information Management Services,Large,Programme Expenditure
UK Statistics Authority,Office for National Statistics,24/07/2019,Exp - Permanent Uk Staff - Overtime,Policy Secretariat,Kpmg Llp,146449," 15,210.20 ", Information Management Services,SME,Programme Expenditure
UK Statistics Authority,Office for National Statistics,24/07/2019,Training & Development,Business Change Support,Kpmg Llp,146449," 1,630.50 ", Information Management Services,SME,Programme Expenditure
UK Statistics Authority,Office for National Statistics,24/07/2019,Training & Development,N A Coordination,Kpmg Llp,146449," 1,630.50 ", Information Management Services,SME,Programme Expenditure
UK Statistics Authority,Office for National Statistics,24/07/2019,Training & Development,Business Indicators And B O P,Kpmg Llp,146449," 1,630.50 ", Information Management Services,SME,Programme Expenditure
UK Statistics Authority,Office for National Statistics,24/07/2019,Training & Development,Productivity Innovation Engagement And Research,Kpmg Llp,146449," 11,413.50 ", Information Management Services,SME,Programme Expenditure
UK Statistics Authority,Office for National Statistics,24/07/2019,Training & Development,Economic Analysis,Kpmg Llp,146449," 3,261.00 ", Information Management Services,SME,Programme Expenditure
UK Statistics Authority,Office for National Statistics,24/07/2019,Training & Development,Economic Statistics Architecture Business Change,Kpmg Llp,146449," 16,305.00 ", Information Management Services,SME,Programme Expenditure
UK Statistics Authority,Office for National Statistics,24/07/2019,Training & Development,Economic Statistics Architecture Business Change,Kpmg Llp,146449," 2,270.00 ", Information Management Services,SME,Programme Expenditure
UK Statistics Authority,Office for National Statistics,24/07/2019,Training & Development,Public Sector And Households,Kpmg Llp,146449," 2,270.00 ", Information Management Services,SME,Programme Expenditure
UK Statistics Authority,Office for National Statistics,25/07/2019,Telecoms,It Operations,Bt Global Services,146760," 49,150.39 ", BT Cloud Services,Large,Programme Expenditure
UK Statistics Authority,Office for National Statistics,25/07/2019,Exp - Purchase Of Goods/Services - Contractors,Business Architecture,Certes Computing Ltd,146762," 8,198.40 ", Information Management Services ,SME,Programme Expenditure
UK Statistics Authority,Office for National Statistics,25/07/2019,Exp - Purchase Of Goods/Services - Contractors,Digital Delivery,Certes Computing Ltd,146762," 17,037.30 ", Information Management Services ,SME,Programme Expenditure
UK Statistics Authority,Office for National Statistics,25/07/2019,Exp - Purchase Of Goods/Services - Contractors,Testing,La International,146763," 22,619.12 ", Information Management Services ,SME,Programme Expenditure
UK Statistics Authority,Office for National Statistics,25/07/2019,Exp - Purchase Of Goods/Services - Contractors,Business Indicators And B O P,La International,146763," 2,563.08 ", Information Management Services ,SME,Programme Expenditure
UK Statistics Authority,Office for National Statistics,25/07/2019,Exp - Purchase Of Goods/Services - Contractors,Security Advisory,La International,146763," 7,689.24 ", Information Management Services ,SME,Programme Expenditure
UK Statistics Authority,Office for National Statistics,25/07/2019,Exp - Purchase Of Goods/Services - Contractors,Data Architecture,La International,146763," 6,747.30 ", Information Management Services ,SME,Programme Expenditure
UK Statistics Authority,Office for National Statistics,25/07/2019,Exp - Purchase Of Goods/Services - Contractors,Strategy And Architecture,La International,146763," 7,048.54 ", Information Management Services ,SME,Programme Expenditure
UK Statistics Authority,Office for National Statistics,25/07/2019,Exp - Purchase Of Goods/Services - Contractors,Tech Delivery Data As A Platform,La International,146763," 10,047.24 ", Information Management Services ,SME,Programme Expenditure
UK Statistics Authority,Office for National Statistics,25/07/2019,Exp - Purchase Of Goods/Services - Contractors,It Applications,La International,146763," 18,969.09 ", Information Management Services ,SME,Programme Expenditure
UK Statistics Authority,Office for National Statistics,25/07/2019,Exp - Purchase Of Goods/Services - Contractors,Digital Delivery,La International,146763, 672.00 , Information Management Services ,SME,Programme Expenditure
UK Statistics Authority,Office for National Statistics,25/07/2019,Exp - Purchase Of Goods/Services - Contractors,Digital Delivery,La International,146763," 3,588.30 ", Information Management Services ,SME,Programme Expenditure
UK Statistics Authority,Office for National Statistics,25/07/2019,Exp - Purchase Of Goods/Services - Contractors,Data As A Service,La International,146763," 5,126.16 ", Information Management Services ,SME,Programme Expenditure
UK Statistics Authority,Office for National Statistics,26/07/2019,Exp - Permanent Uk Staff - Prp Voucher Payments,Ons Corporate Funds,Park Retail Ltd,147051," 115,010.98 ", Survey Incentive Vouchers,Large,Programme Expenditure
UK Statistics Authority,Office for National Statistics,26/07/2019,Exp - Purchase Of Goods/Services - Incentive Payments,Interviewer Support,Park Retail Ltd,147051," 1,255.75 ", Survey Incentive Vouchers,Large,Programme Expenditure
UK Statistics Authority,Office for National Statistics,26/07/2019,Exp - Purchase Of Goods/Services - Incentive Payments,Survey Management,Park Retail Ltd,147051," 34,722.26 ", Survey Incentive Vouchers,Large,Programme Expenditure
UK Statistics Authority,Office for National Statistics,26/07/2019,Exp - Purchase Of Goods/Services - It Contractual Services,Dst Reapportioning,Empiric Solutions Limited,147052," 45,240.00 ", Information Management Services,Large,Programme Expenditure
UK Statistics Authority,Office for National Statistics,26/07/2019,Exp - Purchase Of Goods/Services - Contractors,Testing,La International,147057," 28,321.94 ", Information Management Services ,SME,Programme Expenditure
UK Statistics Authority,Office for National Statistics,26/07/2019,Exp - Purchase Of Goods/Services - Contractors,Programme Delivery,La International,147057," 6,407.76 ", Information Management Services ,SME,Programme Expenditure
UK Statistics Authority,Office for National Statistics,26/07/2019,Exp - Purchase Of Goods/Services - Contractors,Security And Information Management Saim,La International,147057, 387.06 , Information Management Services ,SME,Programme Expenditure
UK Statistics Authority,Office for National Statistics,26/07/2019,Exp - Purchase Of Goods/Services - Contractors,Security Advisory,La International,147057," 29,154.96 ", Information Management Services ,SME,Programme Expenditure
UK Statistics Authority,Office for National Statistics,26/07/2019,Exp - Purchase Of Goods/Services - Contractors,Data Architecture,La International,147057," 7,497.00 ", Information Management Services ,SME,Programme Expenditure
UK Statistics Authority,Office for National Statistics,26/07/2019,Exp - Purchase Of Goods/Services - Contractors,Tech Delivery Data As A Platform,La International,147057," 7,176.60 ", Information Management Services ,SME,Programme Expenditure
UK Statistics Authority,Office for National Statistics,26/07/2019,Exp - Purchase Of Goods/Services - Contractors,It Applications,La International,147057," 47,266.62 ", Information Management Services ,SME,Programme Expenditure
UK Statistics Authority,Office for National Statistics,26/07/2019,Exp - Purchase Of Goods/Services - Contractors,Digital Delivery,La International,147057," 10,764.90 ", Information Management Services ,SME,Programme Expenditure
UK Statistics Authority,Office for National Statistics,26/07/2019,Exp - Purchase Of Goods/Services - Contractors,Digital Delivery,La International,147057," 3,588.30 ", Information Management Services ,SME,Programme Expenditure
UK Statistics Authority,Office for National Statistics,26/07/2019,Exp - Purchase Of Goods/Services - Contractors,Digital Delivery,La International,147057," 7,176.60 ", Information Management Services ,SME,Programme Expenditure
UK Statistics Authority,Office for National Statistics,26/07/2019,Exp - Purchase Of Goods/Services - Contractors,Data As A Service,La International,147057," 3,075.70 ", Information Management Services ,SME,Programme Expenditure
UK Statistics Authority,Office for National Statistics,26/07/2019,Exp - Purchase Of Goods And Services Consultants,Digital Publishing,The Sensible Code Company,147059," 22,818.00 ", Information Management Services,SME,Programme Expenditure
UK Statistics Authority,Office for National Statistics,26/07/2019,Other Goods And Services,Digital Publishing,The Sensible Code Company,147059," 7,182.00 ", Information Management Services,SME,Programme Expenditure
UK Statistics Authority,Office for National Statistics,26/07/2019,Exp - Purchase Of Goods/Services - It Contractual Services,It Operations,FlyForm Ltd,147064," 33,480.00 ",Information Management Services,SME,Programme Expenditure
UK Statistics Authority,Office for National Statistics,10/07/2019,Hosting,It Operations,Amazon Web Services Inc,30001457," 70,194.80 ", Web Hosting Services,Large,Programme Expenditure
UK Statistics Authority,Office for National Statistics,25/07/2019,Electricity,Property Newport,Edf Energy,30001479," 26,551.05 ", Electricity Charges Newport,Large,Programme Expenditure
UK Statistics Authority,Office for National Statistics,30/07/2019,Electricity,Property Titchfield,Edf Energy,30001481," 26,569.28 ", Electricity Charges Titchfield,Large,Programme Expenditure
UK Statistics Authority,Office for National Statistics,31/07/2019,Exp - Miscellaneous Expenditure,Policy Secretariat,United Nations Economic Commission for Europe,30001487," 28,188.79 ", Modernisiaiton of Statisitical Production,Large,Programme Expenditure
UK Statistics Authority,Office for National Statistics,31/07/2019,Exp - Purchase Of Goods/Services - It Contractual Services,Dst Reapportioning,Methods Business & Digital Technology Ltd,30001491," 142,575.00 ", Information Management Services ,Large,Programme Expenditure
UK Statistics Authority,Office for National Statistics,31/07/2019,Surveys,Crime Statistics,Kantar UK Ltd,30001492," 437,993.34 ", Statistical Services,Large,Programme Expenditure
UK Statistics Authority,Office for National Statistics,16/07/2019,Software Licences At Cost - Additions,Cdio Ungp,Amazon Web Services Inc,30001441," 70,194.80 ", Web Hosting Services,Large,Capital Expenditure
